bitfinex-derivatives/quotes_ETHF0:USTF0_20260213
["timestamp","ask_amount","ask_price","bid_price","bid_amount"]
[1770973502313,41.83506637,1958.6,1958.3,6.41210542]
[1770973502619,0.00640106,1958.7,1958.5,6.41210542]
[1770973502822,6.36819334,1959.0,1958.5,6.41210542]
[1770973503026,37.18034701,1958.9,1958.5,6.41210542]
[1770973503216,43.54854035,1958.9,1958.5,6.41210542]
[1770973503420,6.36819334,1958.8,1958.5,6.41210542]
[1770973503926,6.37210089,1958.8,1958.5,6.41210542]
[1770973504428,0.00390755,1958.8,1958.5,6.41210542]
[1770973504726,37.15145048,1958.9,1958.6,6.41210542]
[1770973505025,6.36819334,1958.8,1958.5,2.98806142]
[1770973505228,37.15145048,1958.9,1958.5,9.40016684]
[1770973505429,43.51964382,1958.9,1958.5,9.40016684]
[1770973505629,43.52524214,1958.9,1958.6,6.41210542]
[1770973506531,6.36819334,1961.4,1960.1,6.41210542]
[1770973506731,0.08883579,1961.3,1960.5,6.41210542]
[1770973506926,0.08883579,1961.3,1960.4,2.97406637]
[1770973506927,0.08883579,1961.3,1960.7,6.41210542]
[1770973507230,0.08883579,1961.3,1960.8,6.41210542]
[1770973507431,0.09349825,1961.3,1960.8,6.41745255]
[1770973507818,6.36819334,1962.1,1960.8,6.41745255]
[1770973508126,6.36819334,1962.3,1961.3,6.41210542]
[1770973508329,6.36819334,1962.6,1961.5,6.41210542]
[1770973508927,6.37362499,1962.6,1961.5,6.41210542]
[1770973509828,6.37362499,1962.6,1961.7,6.41210542]
[1770973514040,6.37362499,1962.6,1961.2,40.8]
[1770973514242,6.37362499,1962.6,1961.3,6.41210542]
[1770973520139,6.36819334,1961.8,1961.0,6.41210542]
[1770973520441,6.62326334,1961.7,1960.8,6.41745255]
[1770973520844,6.36819334,1961.2,1960.4,6.41210542]
[1770973522046,6.37344719,1961.2,1960.4,6.41856079]
[1770973524146,6.37344719,1961.2,1960.2,6.41210542]
[1770973524147,6.36819334,1961.0,1960.2,6.41210542]
[1770973524547,6.36819334,1961.0,1959.7,6.41210542]
[1770973525045,6.62335334,1961.0,1959.7,6.41210542]
[1770973525246,6.62335334,1961.0,1959.7,6.41793116]
[1770973526150,6.36819334,1961.0,1959.7,6.41793116]
[1770973531251,6.36819334,1961.0,1959.8,7.21416282]
[1770973532350,6.36819334,1961.0,1959.9,7.21416282]
[1770973532545,6.36819334,1961.0,1960.1,7.21416282]
[1770973535056,6.36819334,1961.0,1960.2,7.27162426]
[1770973536256,6.36819334,1961.0,1960.2,10.2282319]
[1770973536758,6.89108019,1960.8,1960.1,2.95660764]
[1770973537461,6.89108019,1960.8,1960.0,10.2282319]
[1770973538253,0.00525385,1961.2,1960.0,2.95660764]
[1770973538254,6.89108019,1960.6,1960.0,2.95660764]
[1770973538559,6.89108019,1960.6,1959.9,7.27162426]
[1770973540561,6.89108019,1960.6,1960.0,7.27162426]
[1770973541064,6.89108019,1960.6,1959.9,2.95660764]
[1770973541257,6.89108019,1960.6,1959.8,10.2282319]
[1770973541460,6.89108019,1960.6,1959.9,5.00968013]
[1770973541760,6.89108019,1960.6,1959.8,10.2282319]
[1770973541962,6.89108019,1960.6,1959.9,5.01018582]
[1770973542156,6.89108019,1960.6,1959.9,2.95660764]
[1770973542560,6.89108019,1960.6,1959.9,10.2282319]
[1770973544367,6.89108019,1960.6,1960.0,5.01882093]
[1770973544562,6.89108019,1960.6,1960.1,7.27162426]
[1770973545563,6.89108019,1960.6,1960.0,2.95660764]
[1770973547471,6.89108019,1960.4,1960.0,2.95660764]
[1770973547666,6.89108019,1960.4,1960.0,1.34306302]
[1770973548373,6.89108019,1960.4,1960.1,5.0331917]
[1770973548573,6.89108019,1960.2,1959.9,4.39490906]
[1770973548766,6.89108019,1960.2,1959.7,0.00582574]
[1770973549070,6.89108019,1960.2,1959.8,4.99220142]
[1770973549268,6.89108019,1960.2,1959.7,7.27745]
[1770973549474,5.74569279,1960.4,1959.9,7.27162426]
[1770973550063,5.74569279,1960.4,1959.7,0.00582574]
[1770973550264,5.74569279,1960.4,1959.8,12.06879641]
[1770973550466,5.74569279,1960.4,1959.8,7.27162426]
[1770973554776,6.00093279,1960.4,1959.7,0.00582574]
[1770973555579,6.18620386,1960.2,1959.7,0.00582574]
[1770973555771,6.18620386,1960.2,1959.4,7.27162426]
[1770973556171,2.24987545,1960.0,1959.2,7.27162426]
[1770973556371,6.18620386,1960.2,1959.3,4.74488457]
[1770973556571,6.18620386,1960.2,1959.4,4.74488457]
[1770973556778,6.18620386,1960.2,1959.4,0.00475661]
[1770973559680,5.71910548,1959.8,1959.1,7.27162426]
[1770973559883,5.71910548,1959.6,1959.1,7.27162426]
[1770973560281,5.71910548,1959.6,1958.2,21.0193334]
[1770973560282,5.97445548,1959.6,1958.8,7.27162426]
[1770973560696,5.98029344,1959.6,1958.8,7.27534826]
[1770973565398,5.7633734,1959.5,1958.8,7.27534826]
[1770973565893,5.7633734,1959.3,1958.8,0.003724]
[1770973566090,5.7633734,1959.3,1958.6,7.37848593]
[1770973566590,5.72475838,1959.1,1958.2,7.37848593]
[1770973566788,5.72475838,1959.3,1958.4,7.37848593]
[1770973567097,15.85775838,1959.3,1958.4,7.38334268]
[1770973567394,10.133,1959.3,1958.6,7.37848593]
[1770973567982,15.84715606,1959.3,1958.6,7.37848593]
[1770973568788,10.133,1959.3,1958.6,7.37848593]
[1770973570997,5.97675009,1959.2,1958.6,7.37848593]
[1770973572999,5.97675009,1959.2,1958.4,7.38334268]
[1770973574195,5.88458436,1959.0,1958.4,0.00485675]
[1770973574698,5.88458436,1958.8,1958.4,0.00485675]
[1770973574896,5.88458436,1958.8,1958.1,7.37848593]
[1770973575892,2.24987545,1959.0,1958.1,7.37848593]
[1770973575893,5.87272584,1958.6,1958.1,3.21e-06]
[1770973576203,5.87272584,1958.6,1958.0,7.37848593]
[1770973576597,0.25539,1959.2,1958.0,9.62836138]
[1770973576902,14.44592319,1959.1,1958.2,7.37848593]
[1770973577103,14.44592319,1959.1,1958.2,7.38396749]
[1770973577405,5.83901713,1959.0,1958.2,7.38396749]
[1770973578398,8.595,1959.1,1958.2,7.38396749]
[1770973578704,8.595,1959.1,1958.3,4.70996062]
[1770973578902,8.595,1959.1,1958.4,7.37848593]
[1770973580505,14.31634575,1959.1,1958.4,7.37848593]
[1770973580893,5.72134575,1959.0,1958.4,7.37848593]
[1770973582600,5.97676575,1959.0,1958.2,7.38396749]
[1770973582804,5.72134575,1959.0,1958.2,7.38396749]
[1770973583105,8.595,1959.1,1958.3,4.69855995]
[1770973583300,14.14386997,1959.1,1958.2,7.38396749]
[1770973583500,14.14386997,1959.1,1958.4,7.37848593]
[1770973584111,5.50706517,1959.0,1958.4,7.37848593]
[1770973585908,14.01473037,1959.1,1958.4,7.37848593]
[1770973586805,5.4084377,1959.0,1958.4,7.37848593]
[1770973587505,8.595,1959.1,1958.4,7.37848593]
[1770973587704,8.595,1959.1,1958.6,7.37848593]
[1770973587909,13.99065656,1959.1,1958.6,7.37848593]
[1770973588106,13.99065656,1959.1,1958.6,6.87848593]
[1770973588809,8.595,1959.1,1958.6,6.87848593]
[1770973589111,14.46920173,1959.1,1958.6,6.87848593]
[1770973590009,8.595,1959.1,1958.6,6.87848593]
[1770973590804,5.81844092,1959.0,1958.6,6.87848593]
[1770973591011,5.81844092,1959.0,1958.4,11.18409559]
[1770973591210,5.81844092,1959.0,1958.5,4.6921625]
[1770973591404,5.80770853,1959.0,1958.5,6.7116018]
[1770973592403,5.80770853,1959.0,1958.4,4.47249379]
[1770973592605,5.80770853,1959.0,1958.5,4.69436493]
[1770973592807,5.80770853,1959.0,1958.3,11.18409559]
[1770973593008,5.80770853,1959.0,1958.4,4.69487816]
[1770973593304,5.72865399,1958.9,1958.2,10.36572024]
[1770973593506,5.72865399,1958.9,1958.2,0.00548156]
[1770973594209,0.25544,1958.8,1958.2,0.00548156]
[1770973594412,5.72841629,1958.6,1957.8,11.18409559]
[1770973594611,5.98388629,1958.6,1957.9,11.41030259]
[1770973594813,5.98388629,1958.6,1957.9,6.7116018]
[1770973595316,5.98388629,1958.6,1957.9,6.71520711]
[1770973599415,5.72841629,1958.6,1957.9,6.71520711]
[1770973602618,5.70694433,1958.8,1957.9,6.71520711]
[1770973602919,5.70694433,1959.0,1958.2,7.21761474]
[1770973603121,5.70694433,1959.0,1958.3,7.21761474]
[1770973608519,5.70694433,1959.0,1958.2,7.21761474]
[1770973611218,5.70694433,1959.0,1958.3,7.21761474]
[1770973611616,5.70694433,1959.0,1958.3,6.71761474]
[1770973612722,18.99853694,1959.2,1958.3,6.71761474]
[1770973612920,6.67053694,1959.1,1958.4,7.21761474]
[1770973614228,6.92594694,1959.1,1958.4,7.21761474]
[1770973621940,12.329,1959.0,1958.5,6.8495145]
[1770973622238,3.25490048,1959.0,1958.7,6.8495145]
[1770973622535,7.09591053,1959.2,1958.8,6.8495145]
[1770973624633,19.42691053,1959.3,1958.8,6.8495145]
[1770973624838,7.09591053,1959.2,1958.8,6.8495145]
[1770973625038,12.331,1959.3,1958.8,6.8495145]
[1770973625239,12.331,1959.3,1959.0,6.8495145]
[1770973625432,12.331,1959.3,1959.1,6.8495145]
[1770973626437,19.42691053,1959.3,1959.1,6.8495145]
[1770973626641,12.331,1959.3,1959.0,6.8495145]
[1770973626946,19.42691053,1959.3,1959.0,6.8495145]
[1770973627141,19.42691053,1959.3,1958.7,4.47249379]
[1770973627142,7.09591053,1959.2,1958.9,6.8495145]
[1770973627340,7.09591053,1959.2,1958.8,6.8495145]
[1770973628645,19.42691053,1959.3,1958.8,6.8495145]
[1770973628939,12.331,1959.3,1958.9,6.8495145]
[1770973629340,0.00583796,1959.6,1958.9,6.8495145]
[1770973629546,0.00583796,1959.6,1959.0,12.45419472]
[1770973629739,0.00583796,1959.6,1959.2,4.78557712]
[1770973635453,17.88991053,1960.1,1959.4,4.75470352]
[1770973635649,17.88991053,1960.1,1959.5,4.75470352]
[1770973636152,10.794,1960.1,1959.5,4.75470352]
[1770973636455,10.79837834,1960.1,1959.6,4.573885]
[1770973636754,0.00437834,1960.1,1959.6,4.573885]
[1770973637951,7.10028887,1960.1,1959.6,4.573885]
[1770973639258,7.10028887,1960.1,1959.5,0.0060895]
[1770973639558,7.10028887,1960.1,1959.5,4.52749662]
[1770973640551,0.00437834,1960.1,1959.5,4.52749662]
[1770973642058,7.10028887,1960.1,1959.5,4.52749662]
[1770973645458,0.00437834,1960.1,1959.5,4.52749662]
[1770973646062,7.10028887,1960.1,1959.5,4.52749662]
[1770973647760,0.00437834,1960.1,1959.5,4.52749662]
[1770973647961,7.10028887,1960.1,1959.5,4.52749662]
[1770973648764,7.10028887,1960.1,1959.5,0.0060895]
[1770973649066,7.10028887,1960.1,1959.5,4.46297548]
[1770973649661,0.00437834,1960.1,1959.5,4.46297548]
[1770973652161,0.00437834,1960.1,1959.5,7.4697617]
[1770973652366,7.20405438,1960.1,1959.6,4.33439278]
[1770973653767,0.00437834,1960.1,1959.6,4.33439278]
[1770973654562,0.00437834,1960.1,1959.7,4.33565415]
[1770973655269,6.69694647,1960.9,1960.1,4.32009633]
[1770973655571,6.69694647,1960.9,1960.3,4.32009633]
[1770973656171,6.7024754,1960.9,1960.3,4.32009633]
[1770973656766,0.00552893,1960.9,1960.4,4.27410103]
[1770973656966,0.00552893,1960.9,1960.5,4.27762879]
[1770973657374,12.291,1961.1,1960.7,4.25028706]
[1770973657873,12.291,1961.1,1960.7,3.75028706]
[1770973658570,0.00581481,1961.1,1960.7,3.75028706]
[1770973660269,6.69694647,1961.4,1960.7,3.75028706]
[1770973660670,12.54708,1961.6,1960.7,3.75028706]
[1770973660671,6.69694647,1961.5,1960.7,3.75028706]
[1770973660863,6.69694647,1961.5,1960.8,3.7537342]
[1770973661265,6.7012998,1961.5,1960.8,3.7537342]
[1770973662365,0.00435333,1961.5,1960.8,3.7537342]
[1770973662566,0.00435333,1961.5,1960.9,11.46213663]
[1770973662771,0.00435333,1961.5,1961.0,3.86226541]
[1770973663977,6.7012998,1961.5,1961.0,3.86226541]
[1770973664176,0.00435333,1961.5,1961.0,3.86226541]
[1770973667377,6.7012998,1961.5,1961.0,3.86226541]
[1770973668272,0.00435333,1961.5,1961.0,3.86226541]
[1770973668472,6.7012998,1961.5,1961.0,3.86226541]
[1770973668675,6.7012998,1961.5,1960.9,0.00634989]
[1770973669279,6.7012998,1961.5,1960.9,3.84814846]
[1770973669679,6.7012998,1961.5,1960.9,0.00634989]
[1770973670478,6.69694647,1961.3,1960.5,3.83802936]
[1770973671477,6.69694647,1961.0,1960.5,0.00660921]
[1770973671871,6.69694647,1961.0,1960.2,3.82930623]
[1770973672073,6.69694647,1960.8,1960.1,3.83591544]
[1770973672381,6.69694647,1960.7,1959.9,3.86163984]
[1770973672680,6.69694647,1960.4,1959.6,3.86163984]
[1770973672875,6.69694647,1960.4,1959.6,3.86539739]
[1770973679388,6.69694647,1960.4,1959.6,3.65467928]
[1770973679986,17.82994647,1960.6,1959.6,3.65467928]
[1770973680180,6.69694647,1960.5,1959.6,3.65467928]
[1770973680886,6.59359652,1960.3,1959.6,0.00375755]
[1770973682685,6.59359652,1960.3,1959.6,3.50660985]
[1770973687992,6.59359652,1960.3,1959.7,3.46133377]
[1770973688296,6.84883652,1960.5,1959.7,3.46133377]
[1770973688491,6.59359652,1960.6,1959.7,3.46133377]
[1770973688694,6.59359652,1960.8,1959.7,3.46133377]
[1770973688900,6.59359652,1960.8,1959.8,3.44401256]
[1770973693100,6.59359652,1960.8,1960.2,3.45188238]
[1770973693600,6.59359652,1960.8,1960.0,3.43471935]
[1770973695301,6.59359652,1960.8,1960.1,3.45996534]
[1770973695604,6.59359652,1961.0,1960.1,3.45996534]
[1770973696302,6.59359652,1961.0,1960.2,3.40496676]
[1770973697196,6.59359652,1961.0,1960.3,3.40747538]
[1770973697396,6.59359652,1961.0,1960.1,6.36373419]
[1770973697792,6.59359652,1961.0,1960.2,3.39044223]
[1770973699498,6.59359652,1961.0,1960.3,3.42014641]
[1770973699696,6.59359652,1961.0,1960.2,6.39343837]
[1770973699995,6.59359652,1961.0,1960.2,3.42014641]
[1770973700300,6.59359652,1961.0,1960.2,6.39343837]
[1770973701599,6.59359652,1961.0,1960.2,3.42014641]
[1770973703701,6.59359652,1960.8,1960.1,2.97329196]
[1770973704293,6.59359652,1960.8,1960.0,10.90752132]
[1770973704497,6.59359652,1960.8,1960.0,3.46173557]
[1770973704800,6.59359652,1960.5,1959.8,2.97329196]
[1770973705192,6.59359652,1960.5,1959.7,6.42323038]
[1770973705402,6.59359652,1960.5,1959.7,2.97329196]
[1770973705598,6.59359652,1960.3,1959.7,2.97329196]
[1770973705800,6.59359652,1960.2,1959.6,0.00375755]
[1770973706903,6.59359652,1960.1,1959.3,6.45026424]
[1770973707502,6.84888652,1960.1,1959.3,2.97329196]
[1770973707808,6.59359652,1959.8,1959.0,7.44578575]
[1770973708106,6.59359652,1959.8,1959.1,3.4328378]
[1770973708909,6.59359652,1959.8,1959.1,3.43719218]
[1770973709608,6.59359652,1959.8,1959.1,0.00435438]
[1770973710910,6.1534764,1959.6,1958.7,6.34596499]
[1770973711109,6.1534764,1959.5,1958.8,3.37377888]
[1770973711309,6.1534764,1959.5,1958.7,2.97329196]
[1770973711310,6.1534764,1959.4,1958.7,6.33047477]
[1770973711510,6.1534764,1959.4,1958.6,3.35718281]
[1770973711912,6.1534764,1959.4,1958.6,3.3636258]
[1770973712113,6.1534764,1959.4,1958.6,3.35956578]
[1770973712605,2.25133195,1959.5,1957.9,3.34321859]
[1770973712606,6.4089164,1958.8,1957.9,3.34321859]
[1770973712808,6.1534764,1958.7,1957.9,3.34321859]
[1770973713209,6.1534764,1958.9,1958.1,3.32929574]
[1770973713514,0.00389982,1958.9,1958.1,3.33580147]
[1770973713909,0.00389982,1958.9,1958.2,3.32929574]
[1770973714108,0.00389982,1958.9,1958.3,3.39933599]
[1770973715221,6.6283578,1959.7,1958.4,3.37599354]
[1770973715407,6.6283578,1959.5,1958.5,3.37599354]
[1770973716306,6.63294862,1959.5,1958.5,3.37599354]
[1770973720110,6.6283578,1959.3,1958.5,3.37599354]
[1770973723017,6.6283578,1959.3,1958.3,3.14857637]
[1770973725320,6.6283578,1959.1,1958.2,3.10693057]
[1770973727613,6.6283578,1959.1,1958.1,3.07920789]
[1770973727814,6.6283578,1958.9,1958.1,3.07920789]
[1770973730223,6.6283578,1958.9,1958.1,0.00650573]
[1770973730422,6.6283578,1958.9,1958.1,2.9728898]
[1770973732125,6.6283578,1958.9,1958.1,0.00650573]
[1770973732719,6.6283578,1958.9,1958.1,2.9144612]
[1770973734427,6.6283578,1958.9,1958.2,2.86182676]
[1770973736426,6.6283578,1958.9,1958.3,2.83422685]
[1770973736820,6.6283578,1958.9,1958.5,2.83422685]
[1770973739029,6.6283578,1959.3,1958.5,2.83422685]
[1770973739230,6.6283578,1959.3,1958.6,2.74999886]
[1770973740630,6.6283578,1959.3,1958.7,4.59089848]
[1770973740833,6.6283578,1959.3,1958.7,2.97329196]
[1770973741034,6.6283578,1959.3,1958.6,5.63414352]
[1770973741227,6.6283578,1959.3,1958.7,4.58377309]
[1770973741423,6.6283578,1959.3,1958.6,2.97329196]
[1770973741630,6.6283578,1959.3,1958.6,6.25321064]
[1770973742429,6.6283578,1959.3,1958.7,6.25321064]
[1770973744630,6.6283578,1959.3,1958.8,6.25321064]
[1770973744835,6.05931026,1959.4,1958.8,9.2265026]
[1770973745034,6.05931026,1959.4,1958.9,6.25321064]
[1770973747733,0.00459082,1959.5,1958.9,6.25321064]
[1770973747935,6.06390108,1959.5,1958.9,6.25321064]
[1770973749334,6.06390108,1959.5,1959.1,6.25321064]
[1770973749937,6.06390108,1959.5,1959.0,9.2265026]
[1770973750138,6.06390108,1959.5,1959.0,6.25321064]
[1770973750339,6.06390108,1959.5,1958.9,2.97329196]
[1770973750640,6.06390108,1959.5,1958.8,9.2265026]
[1770973750942,6.06390108,1959.5,1958.8,6.25321064]
[1770973752435,6.06390108,1959.5,1958.8,9.2265026]
[1770973753040,6.06390108,1959.5,1958.9,6.25321064]
[1770973758445,6.06390108,1959.5,1958.8,9.2265026]
[1770973758746,6.06390108,1959.5,1958.9,6.25321064]
[1770973760748,0.00459082,1959.5,1958.9,10.65721457]
[1770973760949,0.00459082,1959.5,1959.2,6.25321064]
[1770973761248,12.237,1959.8,1959.3,6.25321064]
[1770973761451,12.237,1959.8,1959.3,7.68392261]
[1770973761748,12.237,1959.8,1959.4,6.25321064]
[1770973761955,12.237,1959.8,1959.5,6.25321064]
[1770973762150,12.2417792,1959.8,1959.5,6.25977227]
[1770973763040,1.68595197,1960.4,1959.6,0.08009629]
[1770973763041,6.05931026,1960.2,1959.6,0.08009629]
[1770973764047,6.06582577,1960.2,1959.6,0.08009629]
[1770973764753,0.00651551,1960.2,1959.9,0.59928508]
[1770973764951,6.06582577,1960.2,1959.9,0.59928508]
[1770973765551,0.00651551,1960.2,1959.9,0.59928508]
[1770973765854,6.05931026,1960.6,1960.0,0.4656628]
[1770973766853,6.05931026,1960.3,1959.5,2.97985359]
[1770973767047,0.25522,1960.5,1959.6,0.62572857]
[1770973767249,6.06396424,1960.6,1959.7,3.54799852]
[1770973767555,6.06396424,1960.6,1959.8,0.57470656]
[1770973768649,6.31917424,1960.6,1959.7,0.55421304]
[1770973770550,6.31917424,1960.6,1959.6,2.97329196]
[1770973770754,6.31917424,1960.6,1959.5,0.48938107]
[1770973772649,6.31917424,1960.6,1959.5,0.00656163]
[1770973772849,6.084106,1960.4,1959.5,0.00656163]
[1770973773049,6.084106,1960.2,1959.5,0.00656163]
[1770973773750,6.339366,1960.2,1959.1,0.38356434]
[1770973773955,6.084106,1959.9,1958.9,0.41654213]
[1770973774152,6.339416,1959.8,1958.7,0.41654213]
[1770973774353,6.339416,1959.8,1958.4,2.97329196]
[1770973774354,6.084106,1959.3,1958.4,2.97329196]
[1770973774553,6.084106,1959.1,1958.4,0.39940363]
[1770973774951,6.08831672,1959.1,1958.4,0.40560106]
[1770973775758,6.08831672,1959.1,1958.4,0.40474751]
[1770973775959,6.08831672,1959.1,1958.4,0.00619743]
[1770973776961,5.9083413,1959.0,1958.0,2.97329196]
[1770973777255,5.9083413,1959.0,1958.0,0.52148989]
[1770973777460,2.25496271,1958.5,1957.7,2.97329196]
[1770973777759,5.90700002,1958.4,1957.6,0.50448591]
[1770973777957,5.90700002,1958.4,1957.7,0.00597235]
[1770973778652,5.90700002,1958.4,1957.7,0.5457064]
[1770973781262,5.90746779,1958.6,1957.7,0.5457064]
[1770973785267,5.88779169,1958.4,1957.7,0.00597235]
[1770973785672,5.88779169,1958.4,1957.7,0.41603022]
[1770973789468,5.89792035,1958.7,1957.7,0.41603022]
[1770973791864,5.89792035,1958.7,1957.9,2.60479566]
[1770973792164,5.89792035,1958.7,1958.0,0.34983295]
[1770973792865,5.86958229,1958.8,1958.0,0.34983295]
[1770973796168,5.86958229,1958.9,1958.3,0.32272659]
[1770973796466,5.86958229,1958.9,1957.9,3.28012162]
[1770973796659,5.86958229,1958.9,1957.9,0.30682966]
[1770973797167,5.86958229,1958.9,1958.0,0.30924556]
[1770973798475,5.86958229,1958.9,1958.1,0.13751515]
[1770973798777,5.86958229,1958.9,1958.3,0.13751515]
[1770973798985,0.00421072,1959.1,1958.3,0.13751515]
[1770973798986,5.91946208,1959.0,1958.3,0.13751515]
[1770973799474,5.92237833,1959.1,1958.5,0.12435209]
[1770973800078,5.92237833,1959.1,1958.4,2.97329196]
[1770973800273,5.92237833,1959.1,1958.4,3.08947754]
[1770973800473,5.92237833,1959.1,1958.5,0.11918173]
[1770973801874,5.92237833,1959.1,1958.6,0.10559357]
[1770973802670,5.92237833,1959.1,1958.5,3.03700097]
[1770973802871,5.92237833,1959.1,1958.5,2.97329196]
[1770973803073,5.92237833,1959.1,1958.2,4.47249379]
[1770973803074,5.59652722,1958.8,1958.2,4.47249379]
[1770973803277,5.59652722,1958.8,1958.1,6.01015623]
[1770973803278,5.59652722,1958.8,1958.1,4.47249379]
[1770973803781,5.59652722,1958.8,1958.1,10.1308377]
[1770973804083,5.59652722,1958.8,1958.1,4.47249379]
[1770973805779,5.85198722,1958.8,1958.1,4.47249379]
[1770973805987,5.85198722,1958.8,1957.9,4.47249379]
[1770973806685,5.85198722,1958.8,1957.9,10.1308377]
[1770973806880,5.59652722,1958.8,1958.0,5.65834391]
[1770973807076,5.59652722,1958.8,1958.1,5.65834391]
[1770973807878,5.59652722,1958.8,1957.9,10.1308377]
[1770973808480,5.59652722,1958.8,1958.0,5.65834391]
[1770973808679,5.59652722,1958.8,1958.1,5.65834391]
[1770973809079,5.59652722,1958.8,1958.0,4.47249379]
[1770973809586,5.59652722,1958.8,1958.0,10.1308377]
[1770973810481,5.59652722,1958.8,1958.1,5.65834391]
[1770973810884,5.59652722,1958.8,1958.0,10.1308377]
[1770973811181,5.59652722,1958.8,1958.0,4.47249379]
[1770973812191,5.59652722,1958.8,1958.1,5.65834391]
[1770973812684,5.59652722,1958.8,1957.9,16.14099393]
[1770973813384,5.59652722,1958.8,1958.0,5.65834391]
[1770973813687,5.59652722,1958.8,1958.0,10.1308377]
[1770973813888,5.59652722,1958.8,1958.1,5.65834391]
[1770973814387,5.59652722,1958.8,1958.0,4.47249379]
[1770973814585,5.59652722,1958.8,1958.0,5.65834391]
[1770973814994,5.59652722,1958.8,1957.9,4.47249379]
[1770973815196,5.59652722,1958.8,1957.9,16.14099393]
[1770973816090,5.59652722,1958.8,1958.0,4.47249379]
[1770973816290,5.59652722,1958.8,1958.0,10.1308377]
[1770973819889,5.59652722,1958.8,1958.1,5.65834391]
[1770973820795,5.59652722,1958.8,1958.2,5.65834391]
[1770973821497,5.59652722,1958.7,1958.2,5.65834391]
[1770973821697,5.59652722,1958.7,1958.0,10.1308377]
[1770973821891,5.59652722,1958.7,1958.0,4.47249379]
[1770973822292,5.59652722,1958.7,1957.9,4.47249379]
[1770973822491,5.59652722,1958.7,1958.0,5.65834391]
[1770973822896,5.59652722,1958.6,1958.0,5.65834391]
[1770973824899,5.59652722,1958.6,1957.9,11.56269585]
[1770973825297,5.59652722,1958.6,1958.2,5.65834391]
[1770973825501,5.59652722,1958.7,1958.3,5.65834391]
[1770973826308,5.59652722,1958.9,1958.6,5.65834391]
[1770973826897,5.59652722,1958.9,1958.5,5.65834391]
[1770973828104,5.59652722,1958.9,1958.4,5.65670929]
[1770973828301,5.59652722,1958.9,1958.3,5.6417027]
[1770973828605,5.59652722,1958.8,1958.3,5.6417027]
[1770973831306,5.59652722,1958.8,1958.2,10.12594781]
[1770973831606,5.59652722,1958.8,1958.3,5.65345402]
[1770973832408,5.59652722,1958.8,1958.4,5.64116968]
[1770973832611,5.69774055,1959.0,1958.5,5.64116968]
[1770973832807,5.70195127,1959.1,1958.7,5.64116968]
[1770973833007,5.70195127,1959.1,1958.6,10.11638946]
[1770973833315,5.70195127,1959.1,1958.5,10.10160712]
[1770973835215,5.70195127,1959.1,1958.5,5.62911333]
[1770973835810,5.67334219,1959.1,1958.6,5.41126238]
[1770973836013,5.67334219,1959.1,1958.7,5.41126238]
[1770973838309,5.67334219,1959.1,1958.6,5.41126238]
[1770973839912,5.67334219,1959.1,1958.5,5.41126238]
[1770973840415,5.67334219,1959.1,1958.6,5.41126238]
[1770973841621,0.00421072,1959.1,1958.6,5.41126238]
[1770973841814,0.00421072,1959.1,1958.6,9.88375617]
[1770973842013,0.00421072,1959.1,1958.7,5.41126238]
[1770973842612,0.00421072,1959.1,1958.8,5.41126238]
[1770973842816,17.86313147,1959.4,1958.8,5.41126238]
[1770973843015,17.86313147,1959.4,1958.9,5.41126238]
[1770973843409,5.66913147,1959.3,1958.9,5.41126238]
[1770973843812,5.67347853,1959.3,1958.9,5.41126238]
[1770973844023,0.00434706,1959.3,1958.9,5.41126238]
[1770973844218,0.00434706,1959.3,1958.9,9.88375617]
[1770973844412,0.00434706,1959.3,1959.0,5.41126238]
[1770973845419,0.25532,1959.8,1959.0,5.41126238]
[1770973845420,17.92813147,1959.7,1959.0,5.41126238]
[1770973845914,0.25532,1959.8,1959.0,5.41126238]
[1770973846115,5.66913147,1959.9,1959.2,5.41126238]
[1770973846324,5.67507756,1959.9,1959.3,5.41126238]
[1770973848116,5.67507756,1959.9,1959.2,0.00481806]
[1770973851623,5.67507756,1959.9,1959.2,5.41608044]
[1770973852524,5.66913147,1959.7,1959.2,0.00481806]
[1770973852721,5.66913147,1959.7,1958.8,5.25742937]
[1770973853628,5.66913147,1959.7,1958.8,5.26164558]
[1770973854426,5.66913147,1959.7,1958.9,5.32940359]
[1770973859127,5.66913147,1959.7,1959.0,5.27189337]
[1770973861627,5.66913147,1959.7,1958.8,4.47671]
[1770973861834,5.24462382,1959.5,1958.8,0.00421621]
[1770973863025,5.24462382,1959.3,1958.8,0.00421621]
[1770973863234,5.24462382,1959.3,1958.6,4.16440976]
[1770973863426,5.24462382,1959.3,1958.5,4.1509468]
[1770973864331,5.24462382,1959.3,1958.5,4.15679809]
[1770973865334,5.24462382,1959.3,1958.6,1.24094275]
[1770973865727,5.24462382,1959.3,1958.7,1.24094275]
[1770973865728,17.51462382,1959.3,1958.7,1.24094275]
[1770973865923,5.24462382,1959.3,1958.9,1.24094275]
[1770973866138,5.24462382,1959.3,1958.8,4.28199558]
[1770973866329,5.24462382,1959.3,1958.7,4.26810192]
[1770973867032,5.24462382,1959.3,1958.5,4.27395321]
[1770973867422,5.24462382,1959.3,1958.5,3.02015357]
[1770973867628,5.24462382,1959.3,1958.5,0.00585129]
[1770973868028,5.24462382,1959.1,1958.5,1.2485141]
[1770973871834,5.24462382,1959.1,1958.5,0.00585129]
[1770973872028,5.24462382,1959.1,1958.2,4.20913238]
[1770973872230,5.24462382,1959.1,1958.3,1.18134222]
[1770973872834,5.24462382,1959.1,1958.5,1.18134222]
[1770973873930,5.24462382,1959.1,1958.3,4.47802016]
[1770973873931,5.24462382,1959.1,1958.3,3.01982865]
[1770973874342,5.24462382,1959.1,1958.3,0.00552637]
[1770973875254,5.24462382,1959.1,1958.3,1.26965913]
[1770973875443,5.24462382,1959.1,1958.3,0.00552637]
[1770973878548,5.24462382,1959.1,1958.3,1.23151381]
[1770973880948,5.24462382,1959.1,1958.3,0.00552637]
[1770973881649,5.24462382,1959.1,1958.3,1.21332451]
[1770973882738,5.24462382,1958.9,1958.1,3.01430228]
[1770973882945,5.24462382,1958.6,1957.8,4.51179609]
[1770973883540,5.24462382,1958.6,1957.8,1.49749381]
[1770973883742,5.24462382,1958.6,1957.8,1.50401706]
[1770973883944,5.24462382,1958.6,1957.8,0.00652325]
[1770973884545,5.24462382,1958.6,1957.8,1.49133121]
[1770973885149,5.24462382,1958.4,1957.8,1.49133121]
[1770973885449,5.24863753,1958.4,1957.8,1.49133121]
[1770973885644,0.00401371,1958.4,1957.8,1.49133121]
[1770973885852,0.00401371,1958.4,1958.0,1.47384145]
[1770973886252,5.24863753,1958.4,1958.0,1.47384145]
[1770973886450,5.24863753,1958.4,1958.1,1.47040525]
[1770973887256,5.24863753,1958.4,1957.9,8.94633026]
[1770973887453,5.24863753,1958.4,1957.9,4.47383647]
[1770973888662,5.24863753,1958.4,1957.9,4.46413678]
[1770973888957,5.24863753,1958.4,1957.9,1.4498345]
[1770973889158,5.24863753,1958.4,1957.9,4.46413678]
[1770973889352,5.24863753,1958.4,1958.0,1.4390336]
[1770973889958,5.24863753,1958.4,1957.9,3.01430228]
[1770973890159,5.24863753,1958.4,1957.9,1.45358997]
[1770973891258,5.24863753,1958.4,1957.9,4.46789225]
[1770973892355,5.24863753,1958.4,1957.9,3.01430228]